[Event "Chinese League Div-A Rapid 2022"]
[Site "Fuling,Chongqing"]
[Date "2022.09.06"]
[Round "1.11"]
[White "Zhao, Jun"]
[Black "Xu, Yinglun"]
[Result "1/2-1/2"]
[ECO "C01"]
[WhiteElo "2619"]
[BlackElo "2549"]
[Annotator "TA"]
[PlyCount "194"]
[EventDate "2022.09.07"]
[EventType "team-tourn"]
[EventCountry "CHN"]
[SourceTitle "playchess.com"]
[Source "ChessBase"]
[SourceQuality "1"]
[TimeControl "1500+10"]

{[%evp 22,194,-29,-33,-16,-19,-16,-26,-36,-47,-39,-53,-26,-54,-50,-47,-49,-45,-45,-51,-52,-58,-7,-12,0,0,0,0,0,-8,-14,-33,0,0,0,-5,0,-7,0,0,0,0,0,0,0,-77,-78,-78,-77,-76,-77,-84,-80,-91,-87,-103,-86,-86,-86,-100,-94,-103,-97,-100,-94,-98,-97,-96,-97,-91,0,-95,-95,-88,-82,-89,-77,-94,-78,-81,-75,-81,-75,-75,-74,-104,-104,-104,-104,-107,-103,-111,-100,-111,-111,-111,-111,-111,-111,-145,-145,-145,-145,-145,-145,-145,-145,-145,-145,-145,-145,-145,-145,-145,-145,-145,-145,-145,-145,-145,-145,-145,-145,-145,0,-145,0,-145,-145,-145,-145,-145,-145,-145,-145,-145,-145,-145,-145,-145,-145,-145,-145,-145,-145,-145,-145,-145,-145,-145,-145,-145,-145,-145,-145,-145,-145,-145,-145,-145,-145,-145,-145,-145,-145,-145,-145,-145,-145,-145,-145,-145,-145,-145,-145]} 1. e4 {[%emt 0:00:03]} e6 {[%emt 0:00:02]} 2. d4 {[%emt 0:00:06]} d5 {[%emt 0:00:02]} 3. exd5 {[%emt 0:01:19]} exd5 {[%emt 0:00:12]} 4. Nf3 {[%emt 0:00:07]} Bd6 {[%emt 0:00:37]} 5. c4 {[%emt 0:01:29]} Nf6 {[%emt 0:00:18]} 6. Nc3 {[%emt 0:01:42]} O-O {[%emt 0:01:15]} 7. cxd5 {[%emt 0:00:38]} Nbd7 {[%emt 0:03:27]} 8. Be2 {[%emt 0:03:01]} h6 {[%emt 0:03:19]} 9. O-O {[%emt 0:00:34]} Nb6 {[%emt 0:00:24]} 10. Ne5 {[%emt 0:03:15]} Nbxd5 {[%emt 0:00:39]} 11. Bf3 {[%emt 0:00:01]} Be6 {[%emt 0:03:16]} 12. Re1 {[%emt 0:00:04]} c6 {[%emt 0:00:46]} 13. Bd2 {[%emt 0:00:32]} Re8 {[%emt 0:00:22]} 14. Na4 {[%emt 0:01:50]} Qc7 {[%emt 0:01:20]} 15. Nc5 {[%emt 0:01:30]} Bf5 {[%emt 0:02:31]} 16. Rc1 {[%emt 0:03:30]} Bxe5 {[%emt 0:01:18]} 17. dxe5 {[%emt 0:00:06]} Rxe5 {[%emt 0:00:02]} 18. Rxe5 {[%emt 0:01:09]} Qxe5 {[%emt 0:00:04]} 19. Nxb7 {[%emt 0:00:18]} Qxb2 {[%emt 0:00:09]} 20. Na5 {[%emt 0:00:03]} Be4 {[%emt 0:03:02]} 21. Be2 {[%emt 0:00:32]} Qxa2 {[%emt 0:02:32]} (21... Rd8 $15 22. Nc4 (22. Nxc6 $2 Nc3 $19) 22... Qxa2) 22. Nxc6 $11 {[%emt 0:00:04]} Qa3 {[%emt 0:01:05]} 23. Bf1 {[%emt 0:01:17]} Bf5 {[%emt 0:00:55]} 24. h3 {[%emt 0:01:18]} Bd7 {[%emt 0:00:49]} 25. Ra1 {[%emt 0:01:26]} Qc5 {[%emt 0:00:05]} 26. Ne5 {[%emt 0:00:04]} Be6 {[%emt 0:00:08]} 27. Rc1 {[%emt 0:00:20]} Qd6 {[%emt 0:00:24]} 28. Nc4 {[%emt 0:00:01]} Qe7 {[%emt 0:00:12]} 29. Qe1 {[%emt 0:00:43]} Rc8 {[%emt 0:00:17]} 30. Ra1 {[%emt 0:00:06]} Qc5 {[%emt 0:00:17]} 31. Qe5 {[%emt 0:01:01]} Nb6 {[%emt 0:00:16]} 32. Qxc5 {[%emt 0:01:35]} Rxc5 {[%emt 0:00:02]} 33. Be3 {[%emt 0:00:33]} (33. Nd6 $11) 33... Rxc4 $17 {[%emt 0:00:16]} 34. Bxc4 {[%emt 0:00:01]} Nxc4 {[%emt 0:00:06]} 35. Bxa7 {[%emt 0:00:02]} h5 {[%emt 0:00:12]} 36. Bd4 {[%emt 0:00:17]} Nd5 {[%emt 0:00:02]} 37. Re1 {[%emt 0:00:16]} Kh7 {[%emt 0:00:02]} 38. Ra1 {[%emt 0:00:12]} Nd6 {[%emt 0:00:15]} 39. Bc5 {[%emt 0:00:05]} Ne4 {[%emt 0:00:05]} 40. Bd4 {[%emt 0:00:01]} g5 {[%emt 0:00:17]} 41. Re1 {[%emt 0:00:04]} Nd6 {[%emt 0:00:18]} 42. Be5 {[%emt 0:00:08]} Nf5 {[%emt 0:00:06]} 43. Ra1 {[%emt 0:00:07]} Kg6 {[%emt 0:00:17]} 44. Ra8 {[%emt 0:00:02]} Nfe7 {[%emt 0:00:03]} 45. Bd6 {[%emt 0:00:02]} Nf5 {[%emt 0:00:12]} 46. Be5 $1 {[%emt 0:00:01]} f6 {[%emt 0:00:04]} 47. Bb2 {[%emt 0:00:13]} h4 {[%emt 0:00:01]} 48. Ra6 {[%emt 0:00:03]} Nf4 {[%emt 0:00:11]} 49. Rb6 {[%emt 0:00:52]} Ng7 {[%emt 0:00:05]} 50. Kh2 {[%emt 0:00:15]} Nd5 {[%emt 0:00:25]} 51. Rd6 {[%emt 0:00:01]} Kf7 {[%emt 0:00:09]} 52. Ra6 {[%emt 0:00:02]} Nb4 {[%emt 0:00:15]} 53. Ra4 {[%emt 0:00:38]} Nd3 {[%emt 0:00:07]} 54. Bd4 {[%emt 0:00:01]} Nf5 {[%emt 0:00:02]} 55. Ba7 {[%emt 0:00:04]} Bd5 {[%emt 0:00:21]} 56. Bb6 {[%emt 0:00:26]} Nf4 {[%emt 0:00:14]} 57. f3 {[%emt 0:00:09]} Bc6 {[%emt 0:00:12]} 58. Ra7+ {[%emt 0:00:03]} Kg6 {[%emt 0:00:01]} 59. Bf2 {[%emt 0:00:03]} Nd3 {[%emt 0:00:06]} 60. Kg1 {[%emt 0:00:05]} Nxf2 {[%emt 0:00:15]} 61. Kxf2 {[%emt 0:00:01]} Ng7 {[%emt 0:00:06]} 62. Ra6 {[%emt 0:00:03]} Bd7 {[%emt 0:00:02]} 63. Rd6 {[%emt 0:00:01]} Bf5 {[%emt 0:00:02]} 64. Ra6 {[%emt 0:00:08]} Nh5 {[%emt 0:00:01]} 65. Rb6 {[%emt 0:00:06]} Nf4 {[%emt 0:00:03]} 66. Ra6 {[%emt 0:00:09]} Be6 {[%emt 0:00:09]} 67. Rb6 {[%emt 0:00:10]} f5 {[%emt 0:00:11]} 68. Ra6 {[%emt 0:00:01]} Kf6 {[%emt 0:00:01]} 69. Ra5 {[%emt 0:00:05]} Bd5 {[%emt 0:00:07]} 70. Ra3 {[%emt 0:00:05]} Bc4 {[%emt 0:00:07]} 71. Rc3 {[%emt 0:00:05]} Bb5 {[%emt 0:00:13]} 72. Rb3 {[%emt 0:00:05]} Bc4 {[%emt 0:00:13]} 73. Rc3 $1 {[%emt 0:00:01]} Bd5 {[%emt 0:00:01]} 74. Ra3 $1 {[%emt 0:00:14]} Ke5 {[%emt 0:00:12]} 75. Ra4 {[%emt 0:00:17]} Nd3+ {[%emt 0:00:10]} 76. Ke3 {[%emt 0:00:16]} Nb2 {[%emt 0:00:05]} 77. Ra1 {[%emt 0:00:36]} Nc4+ {[%emt 0:00:31]} 78. Kf2 {[%emt 0:00:01]} f4 {[%emt 0:00:19]} 79. Ra7 {[%emt 0:00:35]} Ne3 {[%emt 0:00:05]} 80. Ra5 {[%emt 0:00:08]} Kf6 {[%emt 0:00:10]} 81. Ra6+ {[%emt 0:00:01]} Kf5 {[%emt 0:00:26]} 82. Ra5 {[%emt 0:00:02]} Kg6 {[%emt 0:00:02]} 83. Ra6+ {[%emt 0:00:15]} Kh5 {[%emt 0:00:01]} 84. Ra1 {[%emt 0:00:20]} Bc4 {[%emt 0:00:02]} 85. Kg1 {[%emt 0:00:23]} Kg6 {[%emt 0:00:26]} 86. Kf2 {[%emt 0:00:01]} Kf6 {[%emt 0:00:11]} 87. Kg1 {[%emt 0:00:06]} Ke6 {[%emt 0:00:07]} 88. Kf2 {[%emt 0:00:20]} Kd6 {[%emt 0:00:09]} 89. Ra5 {[%emt 0:00:11]} Nd5 {[%emt 0:00:42]} 90. Ra8 {[%emt 0:00:03]} Nb4 {[%emt 0:00:12]} 91. Ra5 {[%emt 0:00:15]} Nd3+ {[%emt 0:00:03]} 92. Kg1 {[%emt 0:00:03]} Nc5 {[%emt 0:00:05]} 93. Ra7 {[%emt 0:00:07]} Kd5 {[%emt 0:00:07]} 94. Rg7 {[%emt 0:00:12]} Ne6 {[%emt 0:00:02]} 95. Rg8 {[%emt 0:00:08]} Kd4 {[%emt 0:00:14]} 96. Kf2 {[%emt 0:00:01]} Bd3 {[%emt 0:00:14]} 97. Re8 {[%emt 0:00:11]} Ke5 {[%emt 0:00:00]} 1/2-1/2

[Event "Chinese League Div-A Rapid 2022"]
[Site "Fuling,Chongqing"]
[Date "2022.09.06"]
[Round "1.12"]
[White "Huang, Renjie"]
[Black "Xue, Haowen"]
[Result "1-0"]
[ECO "C41"]
[WhiteElo "2446"]
[BlackElo "2128"]
[Annotator "TA"]
[PlyCount "75"]
[EventDate "2022.09.07"]
[EventType "team-tourn"]
[EventCountry "CHN"]
[SourceTitle "playchess.com"]
[Source "ChessBase"]
[SourceQuality "1"]
[TimeControl "1500+10"]

{[%evp 16,75,42,35,56,51,56,28,56,51,52,49,108,108,101,105,106,109,148,162,379,370,340,366,479,483,470,450,468,458,633,149,137,163,156,148,178,164,208,129,124,93,241,235,275,266,381,390,544,446,429,381,470,354,1105,1093,29987,29988,29988,29980,29979,29980]} 1. e4 {[%emt 0:00:02]} d6 {[%emt 0:00:02]} 2. d4 {[%emt 0:00:08]} Nf6 {[%emt 0:00:03]} 3. Nc3 {[%emt 0:00:01]} e5 {[%emt 0:00:07]} 4. Nf3 {[%emt 0:00:10]} Nbd7 {[%emt 0:00:07]} 5. Bc4 {[%emt 0:00:45]} Be7 {[%emt 0:00:13]} 6. O-O {[%emt 0:00:04]} c6 {[%emt 0:00:21]} 7. a4 {[%emt 0:00:20]} Qc7 {[%emt 0:00:42] 7...h6 is setting a new trend.} 8. Ba2 {[%emt 0:00:20]} O-O {[%emt 0:01:03]} 9. h3 {[%emt 0:00:01]} b6 {[%emt 0:01:00] C41: Philidor Defence.} 10. Re1 {[%emt 0:01:26]} a6 {[%emt 0:03:28]} 11. Bg5 {[%emt 0:00:42][%cal Bc1g5,Bg5e3,Be3d4][%mdl 32] has lost popularity (11.Be3).} h6 {[%emt 0:01:47] White has an edge.} 12. Be3 {[%emt 0:00:16]} Re8 {[%emt 0:00:41]} 13. Nh4 {[%emt 0:00:46] [#]} Bb7 $146 {[%emt 0:01:44]} (13... Nf8 $14) ({Predecessor:} 13... Rb8 14. Nf5 Bf8 15. Qf3 exd4 16. Bxd4 c5 17. Nxh6+ gxh6 18. Bxf6 Nxf6 19. Qxf6 Bg7 {½-½ (58) Heinemann,J (2221)-Brunello,M (2336) Mulhouse 2016}) 14. Nf5 $1 $16 {[%emt 0:00:40]} Bf8 {[%emt 0:07:02]} 15. Qf3 $1 {[%emt 0:00:29] aiming for Qg3.} exd4 {[%emt 0:03:07]} 16. Bxd4 {[%emt 0:00:35]} Kh7 {[%emt 0:00:21]} 17. Nxh6 {[%emt 0:04:27] White is much more active.} Kxh6 {[%emt 0:01:19] [#]} (17... gxh6 {keeps fighting.} 18. Bxf6 Nxf6) 18. Qf4+ $1 $18 {[%emt 0:00:01]} g5 {[%emt 0:00:58]} 19. Qf5 {[%emt 0:00:00]} Re5 {[%emt 0:02:35]} 20. Bxe5 {[%emt 0:00:46]} dxe5 {[%emt 0:00:02]} 21. Bxf7 {[%emt 0:00:09][%csl Gf7][%cal Rf5g6]} Kg7 {[%emt 0:00:06]} 22. Be6 {[%emt 0:00:04]} ({Weaker is} 22. Bh5 Kh8 $16) 22... Re8 {[%emt 0:00:41]} 23. Rad1 $2 {[%emt 0:00:38]} (23. Qxg5+ $18 {is the precise move to win.} Kh8 24. Bxd7 Qxd7 25. Qxf6+ Qg7 26. Qh4+ Qh7 27. Qg5) 23... Rxe6 $16 {[%emt 0:00:36]} 24. Qxe6 {[%emt 0:00:02] Really sharp!} Bc8 {[%emt 0:00:38]} 25. Qf5 {[%emt 0:00:12]} Nh7 {[%emt 0:00:07] [#]} 26. Qf3 $1 {[%emt 0:00:30]} Ndf6 {[%emt 0:00:09]} 27. Ne2 {[%emt 0:00:03] And now Ng3 would win.} g4 {[%emt 0:00:26]} 28. hxg4 {[%emt 0:00:22]} Bxg4 {[%emt 0:00:03] Loses the game.} (28... Ng5 $16 {is a better defense.} 29. Qd3 Bxg4) 29. Qg3 $18 {[%emt 0:00:20] Strongly threatening f3.} Bc5 {[%emt 0:00:18]} 30. Nd4 {[%emt 0:00:35] Threatens to win with Ne6+.} Bxd4 {[%emt 0:00:12]} (30... Ng5 $142 31. c3 Kg6) 31. Rxd4 {[%emt 0:00:01][%mdl 64] f3 is the strong threat. Pin} Qe7 {[%emt 0:00:11]} 32. Rd3 {[%emt 0:00:14]} Kf7 {[%emt 0:00:08]} 33. Qh4 {[%emt 0:00:32]} Bh5 {[%emt 0:00:11]} 34. Ree3 {[%emt 0:00:56]} Qb4 $2 {[%emt 0:00:10] [#]} (34... Nf8 35. Qg5 Qc7) 35. Rd7+ $3 {[%emt 0:01:00][%mdl 512]} Kg6 {[%emt 0:00:11]} (35... Nxd7 36. Qxh5+) 36. Rg3+ {[%emt 0:01:14] White mates.} Kh6 {[%emt 0:00:01]} 37. Rdg7 {[%emt 0:00:08][%csl Gg7][%cal Rg3g6]} Qe1+ {[%emt 0:00:17]} 38. Kh2 {[%emt 0:00:01] Weighted Error Value: White=0.40/Black=0.69} 1-0

[Event "Chinese League Div-A Rapid 2022"]
[Site "Fuling,Chongqing"]
[Date "2022.09.06"]
[Round "1.13"]
[White "Liu, Qingnan"]
[Black "Wen, Yang"]
[Result "0-1"]
[ECO "C67"]
[WhiteElo "2542"]
[BlackElo "2588"]
[Annotator "TA"]
[PlyCount "76"]
[EventDate "2022.09.07"]
[EventType "team-tourn"]
[EventCountry "CHN"]
[SourceTitle "playchess.com"]
[Source "ChessBase"]
[SourceQuality "1"]
[TimeControl "1500+10"]

{[%evp 12,76,0,-7,0,0,18,-4,-12,-14,19,10,33,33,48,32,42,50,110,99,100,-16,-14,-27,0,-41,-14,-18,-12,-16,-13,-23,17,11,42,-23,-5,0,41,39,30,35,51,-21,-16,-63,-26,-191,-192,-233,-245,-285,-300,-314,-198,-488,-385,-593,-308,-677,-663,-1043,-784,-784,-775,-1191,-1154]} 1. e4 {[%emt 0:00:03]} e5 {[%emt 0:00:02]} 2. Nf3 {[%emt 0:00:01]} Nc6 {[%emt 0:00:02]} 3. Bb5 {[%emt 0:00:02]} Nf6 {[%emt 0:00:06]} 4. O-O {[%emt 0:00:02]} Nxe4 {[%emt 0:00:02]} 5. d4 {[%emt 0:00:03]} Nd6 {[%emt 0:00:05]} 6. dxe5 {[%emt 0:00:02]} Nxb5 {[%emt 0:00:05]} 7. a4 {[%emt 0:00:02]} Nbd4 {[%emt 0:01:08] C67: Ruy Lopez: Berlin Defence: 4 0-0 Nxe4.} 8. Nxd4 {[%emt 0:00:06]} d5 $1 {[%emt 0:00:04][%mdl 4] is now more promising than 8...Nxd4.} 9. Nc3 {[%emt 0:00:48][%cal Oc1g5]} Be7 {[%emt 0:01:29] The position is equal.} 10. f4 {[%emt 0:02:36]} Bc5 {[%emt 0:05:47]} 11. Be3 {[%emt 0:00:25]} Bxd4 {[%emt 0:00:03]} 12. Bxd4 {[%emt 0:00:02]} Bf5 {[%emt 0:00:03]} 13. Bc5 {[%emt 0:07:35]} b6 {[%emt 0:07:19]} 14. Ba3 {[%emt 0:04:40]} ({Much weaker is} 14. Qxd5 Qxd5 15. Nxd5 bxc5 $11) 14... d4 {[%emt 0:00:04]} (14... Qd7 $1 $14) 15. Qf3 $16 {[%emt 0:06:39]} Qd7 {[%emt 0:00:03] [#]} 16. Ne4 $146 {[%emt 0:00:40]} (16. Nd5 $1 $16 {[%cal Rd5b4] Nb4 is the strong threat.} Rc8 17. c4) ({Predecessor:} 16. Nd5 Bg4 17. e6 fxe6 18. Nxc7+ Kd8 19. Qxg4 Kxc7 20. b4 Rad8 21. Rad1 h5 22. Qe2 {1-0 (28) Ponkratov,P (2619)-Goganov,A (2565) Khanty-Mansiysk 2019}) 16... O-O-O {[%emt 0:01:43]} 17. b4 {[%emt 0:00:19]} (17. a5 $5) 17... Kb8 {[%emt 0:06:05]} (17... d3 $5 {[%cal Rd3c2]}) 18. Rac1 {[%emt 0:02:01]} (18. b5 $5 {[%cal Rb5c6]} Na5 19. Qe2 $15) 18... Qd5 {[%emt 0:00:38]} 19. Ng3 {[%emt 0:00:02]} Qxf3 {[%emt 0:00:51]} 20. Rxf3 {[%emt 0:00:01]} Bg4 {[%emt 0:00:01]} 21. Rd3 {[%emt 0:00:02]} h5 {[%emt 0:00:07][%cal Og7g5]} (21... g5 $5 {[%cal Rg5f4]} 22. Rf1 Be6 $11) 22. h3 {[%emt 0:00:45]} Be6 {[%emt 0:00:02][%cal Og7g5]} 23. h4 {[%emt 0:00:26]} (23. b5 $14 Na5 24. Bb4) 23... Ne7 $36 {[%emt 0:01:38][%cal Bc6e7,Be7f5,Bf5e3][%mdl 2080] Black has the initiative.} 24. Bb2 {[%emt 0:00:56]} c5 {[%emt 0:01:00]} 25. bxc5 {[%emt 0:00:01]} bxc5 {[%emt 0:00:01][%cal Bb6c5,Bc5c4,Bc4c3][%mdl 32]} 26. Ne4 {[%emt 0:00:00]} Rd5 {[%emt 0:00:40]} 27. Ba3 {[%emt 0:00:20]} ({White should play} 27. c4 $14 dxc3 28. Rdxc3) 27... c4 $1 $11 {[%emt 0:00:10]} 28. Rd2 {[%emt 0:00:34]} (28. Rdd1 $11 Nf5 29. Nd6) 28... Nf5 {[%emt 0:00:01]} (28... c3 $5 {[%cal Rc3d2]} 29. Rd3 Bf5 $15) 29. Nc5 $2 {[%emt 0:00:08] This move loses the game for White.} (29. c3 $11 {and White stays safe.}) 29... Rc8 {[%emt 0:00:11]} 30. Rb1+ {[%emt 0:00:05]} Ka8 {[%emt 0:00:03]} 31. Ne4 {[%emt 0:00:11]} c3 {[%emt 0:00:19]} ({Not} 31... Nxh4 32. Nd6 Rb8 33. Rxb8+ Kxb8 34. Nxc4 $11) 32. Rf2 {[%emt 0:00:05]} Ne3 {[%emt 0:00:01] [#] And now ...Bf5 would win.} ({And not} 32... Nxh4 33. Nd6 Rb8 34. Rxb8+ Kxb8 35. f5 $11) 33. Ng3 $2 {[%emt 0:00:09]} (33. Nd6 {might work better.} d3 34. Nxc8 dxc2 35. Re1) 33... g6 {[%emt 0:00:07]} 34. Bd6 {[%emt 0:00:06]} (34. f5 $142 Nxf5 35. Nxf5 Bxf5 36. Bc1) 34... Bf5 {[%emt 0:00:21]} 35. Rc1 $2 {[%emt 0:00:28]} (35. Nxf5 Nxf5 36. Rd1) 35... Bxc2 $19 {[%emt 0:00:06] Black is clearly winning.} 36. Ne2 {[%emt 0:00:21]} Bf5 {[%emt 0:00:10] Threatens to win with ...c2.} 37. Rf3 {[%emt 0:00:01]} c2 {[%emt 0:00:10][%cal Od4d3] aiming for ...d3!} 38. Kf2 {[%emt 0:00:05]} Ng4+ {[%emt 0:00:07] Weighted Error Value: White=0.85/Black=0.34} 0-1

[Event "Chinese League Div-A Rapid 2022"]
[Site "Fuling,Chongqing"]
[Date "2022.09.06"]
[Round "1.14"]
[White "Song, Yuxin"]
[Black "Hu, Yu A."]
[Result "1-0"]
[ECO "B31"]
[WhiteElo "2317"]
[BlackElo "2074"]
[Annotator "TA"]
[PlyCount "61"]
[EventDate "2022.09.07"]
[EventType "team-tourn"]
[EventCountry "CHN"]
[SourceTitle "playchess.com"]
[Source "ChessBase"]
[SourceQuality "1"]
[TimeControl "1500+10"]

{[%evp 27,61,15,23,16,44,16,39,20,16,11,97,90,99,99,99,99,101,101,112,64,110,126,103,45,45,-25,0,0,250,229,291,281,1239,1227,29995,29996]} 1. e4 {[%emt 0:00:01]} c5 {[%emt 0:00:02]} 2. Nf3 {[%emt 0:00:02]} Nc6 {[%emt 0:00:01]} 3. Bb5 {[%emt 0:00:02]} g6 {[%emt 0:00:01]} 4. O-O {[%emt 0:00:02]} Bg7 {[%emt 0:00:02]} 5. Re1 {[%emt 0:00:03]} Nf6 {[%emt 0:00:02][%cal Bg8f6,Bf6d5,Bd5c7,Bc7e6][%mdl 32]} 6. e5 {[%emt 0:00:27]} Nd5 {[%emt 0:00:02]} 7. Nc3 {[%emt 0:00:01]} Nc7 {[%emt 0:00:03]} 8. Bxc6 {[%emt 0:00:02]} dxc6 {[%emt 0:00:52]} 9. Ne4 {[%emt 0:00:05]} Ne6 {[%emt 0:00:03]} 10. d3 {[%emt 0:00:05]} O-O {[%emt 0:00:03]} 11. Be3 {[%emt 0:00:03]} b6 {[%emt 0:00:02]} 12. Qd2 {[%emt 0:00:02]} Nd4 {[%emt 0:00:27]} 13. Nxd4 {[%emt 0:00:03]} cxd4 {[%emt 0:00:01]} 14. Bh6 {[%emt 0:00:01]} c5 {[%emt 0:00:15]} 15. Ng3 {[%emt 0:01:48] [#] B31: Sicilian: 2...Nc6 3 Bb5 g6.} Be6 $146 {[%emt 0:00:59]} ({Predecessor:} 15... f5 16. h4 Bxh6 17. Qxh6 Rf7 18. a4 a5 19. Ne2 Qf8 20. Qf4 Ba6 21. Rad1 e6 22. c3 dxc3 23. bxc3 {½-½ (71) Repp,H (2500)-Dunlop,G (2511) ICCF email 2017}) 16. b3 {[%emt 0:00:42]} Qd7 {[%emt 0:00:28]} 17. Re4 {[%emt 0:01:10] White is slightly better.} f5 {[%emt 0:02:00]} 18. Bxg7 {[%emt 0:08:06]} Kxg7 {[%emt 0:00:49]} (18... Rf7 $1 $11 {remains equal.}) 19. Rh4 $16 {[%emt 0:00:01]} Rf7 {[%emt 0:00:09]} 20. Qg5 {[%emt 0:01:42] White is more active.} Kf8 {[%emt 0:03:00]} ({Don't play} 20... Kg8 $6 21. Nh5 $11) 21. Ne2 {[%emt 0:00:02]} Kg8 {[%emt 0:02:30]} 22. Nf4 {[%emt 0:00:15][%cal Of4g6]} Rg7 {[%emt 0:00:01]} 23. Re1 {[%emt 0:00:30]} (23. Rh6 $16) 23... Rf8 {[%emt 0:00:56]} (23... Bd5 $14 {feels stronger.}) 24. Rh6 {[%emt 0:00:06]} Bd5 {[%emt 0:08:46]} 25. e6 {[%emt 0:06:50]} (25. h4 $16) 25... Qd6 $14 {[%emt 0:00:31]} 26. Rh3 {[%emt 0:00:01]} (26. Qg3 $14) 26... Bc6 {[%emt 0:03:21]} 27. Rg3 {[%emt 0:01:04]} Kh8 $2 {[%emt 0:00:01]} (27... Rf6 $1 $11 28. Rh3 Bd5) 28. Qh6 $18 {[%emt 0:02:00][%cal Rf4g6] Black must now prevent Nxg6+.} Rfg8 {[%emt 0:00:52] [#]} 29. Nh3 {[%emt 0:00:20] Threatens to win with Ng5.} Be8 $2 {[%emt 0:01:28]} (29... Rc8 30. Ng5 Kg8) 30. Ng5 {[%emt 0:00:13] White wants to mate with Rh3.} f4 {[%emt 0:02:02]} 31. Rh3 {[%emt 0:00:03] Weighted Error Value: White=0.15 (very precise) /Black=0.85} 1-0

[Event "Chinese League Div-A Rapid 2022"]
[Site "Fuling,Chongqing"]
[Date "2022.09.06"]
[Round "1.15"]
[White "Li, Xueyi"]
[Black "Liu, Manli"]
[Result "0-1"]
[ECO "E17"]
[WhiteElo "2280"]
[BlackElo "2195"]
[Annotator "RC"]
[PlyCount "109"]
[EventDate "2022.09.07"]
[EventType "team-tourn"]
[EventCountry "CHN"]
[SourceTitle "playchess.com"]
[Source "ChessBase"]
[SourceQuality "1"]
[TimeControl "1500+10"]

1. d4 {[%emt 0:00:03]} e6 {[%emt 0:00:12]} 2. Nf3 {[%emt 0:00:10]} d5 {[%emt 0:00:06]} 3. g3 {[%emt 0:00:02]} Nf6 {[%emt 0:00:05]} 4. Bg2 {[%emt 0:00:02]} Be7 {[%emt 0:00:05]} 5. O-O {[%emt 0:00:04]} O-O {[%emt 0:00:05]} 6. b3 {[%emt 0:00:03]} b6 {[%emt 0:00:24]} 7. c4 {[%emt 0:00:07]} Bb7 {[%emt 0:00:09]} 8. Ne5 {[%emt 0:00:02]} Qc8 {[%emt 0:02:18]} 9. cxd5 {[%emt 0:02:30]} Bxd5 {[%emt 0:00:15]} 10. Nf3 {[%emt 0:00:03]} Rd8 {[%emt 0:00:49]} 11. Nc3 {[%emt 0:01:36]} Bb7 {[%emt 0:00:14]} 12. Qc2 {[%emt 0:02:16]} Nc6 {[%emt 0:03:25]} 13. Rd1 {[%emt 0:00:47]} Nb4 {[%emt 0:00:07]} 14. Qb2 {[%emt 0:00:29]} c5 {[%emt 0:03:29]} 15. dxc5 {[%emt 0:07:44]} Rxd1+ {[%emt 0:01:28]} 16. Nxd1 {[%emt 0:00:02]} Bxc5 {[%emt 0:03:25]} 17. Be3 {[%emt 0:00:15]} Nbd5 {[%emt 0:01:22]} 18. Bxc5 {[%emt 0:00:34]} Qxc5 {[%emt 0:00:03]} 19. Rc1 {[%emt 0:00:08]} Qe7 {[%emt 0:00:59]} 20. h3 {[%emt 0:02:36]} h6 {[%emt 0:00:03]} 21. Rc4 {[%emt 0:02:30]} Rd8 {[%emt 0:00:55]} 22. Qc1 {[%emt 0:01:14]} b5 {[%emt 0:01:35]} 23. Rc2 {[%emt 0:01:26]} Ne4 {[%emt 0:03:44]} 24. Ne3 {[%emt 0:02:03]} b4 {[%emt 0:01:14]} 25. Nxd5 {[%emt 0:00:16]} Bxd5 {[%emt 0:00:06]} 26. Rc7 {[%emt 0:00:22]} Rd7 {[%emt 0:00:04]} 27. Rc8+ {[%emt 0:00:16]} Rd8 {[%emt 0:00:14]} 28. Rc7 {[%emt 0:00:04]} Qd6 {[%emt 0:00:15]} 29. Rxa7 {[%emt 0:00:30]} Qb6 {[%emt 0:00:41]} 30. Qe3 {[%emt 0:00:49]} Nc5 {[%emt 0:00:11]} 31. Re7 {[%emt 0:00:27]} Kf8 {[%emt 0:00:04]} 32. Qe5 {[%emt 0:00:14]} Kxe7 {[%emt 0:00:04]} 33. Qxg7 {[%emt 0:00:02]} Ne4 {[%emt 0:00:09]} 34. e3 {[%emt 0:00:03]} Qc5 {[%emt 0:00:59]} 35. Ne5 {[%emt 0:00:20]} Qc1+ {[%emt 0:00:42]} 36. Kh2 {[%emt 0:00:13]} Ng5 {[%emt 0:00:44]} 37. Qxh6 {[%emt 0:00:23]} Rg8 {[%emt 0:00:06]} 38. Bxd5 {[%emt 0:00:26]} exd5 {[%emt 0:00:02]} 39. Nc6+ {[%emt 0:00:14]} Kd7 {[%emt 0:00:20]} 40. Ne5+ {[%emt 0:00:04]} Kc7 {[%emt 0:00:14]} 41. Qa6 {[%emt 0:00:07]} Qc5 {[%emt 0:00:08]} 42. Qa4 {[%emt 0:00:16]} Rd8 {[%emt 0:00:07]} 43. Nd3 {[%emt 0:00:14]} Qb6 {[%emt 0:00:06]} 44. a3 {[%emt 0:00:05]} bxa3 {[%emt 0:00:06]} 45. Qxa3 {[%emt 0:00:02]} Ne4 {[%emt 0:00:19]} 46. Qe7+ {[%emt 0:00:13]} Rd7 {[%emt 0:00:01]} 47. Qe5+ {[%emt 0:00:01]} Qd6 {[%emt 0:00:05]} 48. Qd4 {[%emt 0:00:04]} Qf6 {[%emt 0:00:18]} 49. Qa7+ {[%emt 0:00:02]} Kd8 {[%emt 0:00:05]} 50. Qa8+ {[%emt 0:00:12]} Ke7 {[%emt 0:00:04]} 51. Kg2 {[%emt 0:00:36]} Qc3 {[%emt 0:00:14]} 52. Qa3+ {[%emt 0:00:11]} Kf6 {[%emt 0:00:08]} 53. Nf4 {[%emt 0:00:03]} Qd2 {[%emt 0:00:30]} 54. Qa1+ {[%emt 0:00:19]} d4 {[%emt 0:00:15]} 55. Kh1 {[%emt 0:00:26]} 0-1